fUSD/lending_fUSD_20250530
["ID","MTS","AMOUNT","RATE_DAILY","PERIOD"]
[363230132,1748632243035,-500.0,0.00027104,2]
[363230134,1748632243044,-6900.0,0.00027116,2]
[363230136,1748632243053,-500.0,0.00027117,2]
[363230138,1748632243062,-1700.0,0.00027119,2]
[363230140,1748632243071,-3900.0,0.0002712,2]
[363230142,1748632243081,-500.0,0.0002712,2]
[363230144,1748632243090,-3565.77,0.00027123,2]
[363230146,1748632243100,-28804.6683756,0.00027128,3]
[363230148,1748632243109,-6900.0,0.0002713,2]
[363230150,1748632243118,-6900.0,0.00027138,2]
[363230152,1748632243128,-1700.0,0.00027149,2]
[363230154,1748632243137,-500.0,0.0002715,2]
[363230156,1748632243147,-500.0,0.00027159,2]
[363230158,1748632243156,-1400.0,0.00027163,2]
[363230160,1748632243165,-500.0,0.00027163,2]
[363230161,1748632243174,-3900.0,0.00027165,2]
[363230162,1748632243183,-500.0,0.00027165,2]
[363230163,1748632243193,-1700.0,0.00027168,2]
[363230164,1748632243202,-500.0,0.00027169,2]
[363230165,1748632243211,-500.0,0.00027173,2]
[363230166,1748632243221,-500.0,0.00027173,2]
[363230167,1748632243230,-500.0,0.00027178,2]
[363230168,1748632243239,-500.0,0.00027178,2]
[363230169,1748632243248,-600.0,0.00027183,2]
[363230170,1748632243258,-151.7451015,0.00027185,2]
[363230171,1748632243267,-1400.0,0.00027186,2]
[363230172,1748632243276,-500.0,0.0002719,2]
[363230174,1748632243285,-500.0,0.00027193,2]
[363230176,1748632243294,-500.0,0.00027194,2]
[363230178,1748632243303,-115218.673502,0.00027197,3]
[363230179,1748632243312,-500.0,0.00027202,2]
[363230182,1748632243322,-500.0,0.00027205,2]
[363230183,1748632243331,-6900.0,0.00027206,2]
[363230186,1748632243343,-600.0,0.00027206,2]
[363230188,1748632243352,-207276.4684,0.00027207,2]
[363230190,1748632243361,-3900.0,0.0002721,2]
[363230192,1748632243370,-504.68448209,0.0002721,2]
[363230194,1748632243380,-1400.0,0.00027222,2]
[363230195,1748632243390,-500.0,0.00027232,2]
[363230197,1748632243401,-1400.0,0.00027233,2]
[363230199,1748632243411,-500.0,0.0002724,2]
[363230201,1748632243420,-4157.80880718,0.00027245,16]
[363230203,1748632243429,-500.0,0.00027245,2]
[363230205,1748632243438,-500.0,0.00027248,2]
[363230208,1748632243450,-1400.0,0.00027249,2]
[363230210,1748632243460,-600.0,0.0002725,2]
[363230211,1748632243470,-3231.39675069,0.00027261,2]
[363230214,1748632243480,-500.0,0.00027262,2]
[363230216,1748632243491,-3900.0,0.00027268,2]
[363230218,1748632243500,-500.0,0.00027273,2]
[363230220,1748632243509,-500.0,0.00027273,2]
[363230222,1748632243518,-600.0,0.00027283,2]
[363230224,1748632243530,-500.0,0.00027285,2]
[363230226,1748632243540,-212.87827641,0.00027286,2]
[363230227,1748632243549,-24756.6496363,0.00027292,3]
[363230229,1748632243559,-500.0,0.00027293,2]
[363230231,1748632243568,-3900.0,0.00027294,2]
[363230233,1748632243577,-6900.0,0.00027296,2]
[363230235,1748632243587,-28804.6683756,0.00027299,3]
[363230237,1748632243598,-3900.0,0.00027302,2]
[363230240,1748632243608,-500.0,0.00027303,2]
[363230241,1748632243617,-223.0315306,0.00027303,2]
[363230243,1748632243627,-719.04747942,0.00027303,2]
[363230245,1748632243636,-162.380719,0.00027303,2]
[363230247,1748632243646,-1156.41848616,0.00027304,2]
[363230249,1748632243655,-1700.0,0.00027305,2]
[363230251,1748632243664,-3900.0,0.00027309,2]
[363230253,1748632243674,-500.0,0.00027309,2]
[363230255,1748632243683,-6900.0,0.00027314,2]
[363230257,1748632243692,-500.0,0.00027315,2]
[363230259,1748632243702,-500.84422037,0.00027318,2]
[363230261,1748632243711,-6900.0,0.00027321,2]
[363230263,1748632243720,-1400.0,0.00027333,2]
[363230265,1748632243729,-1400.0,0.00027341,2]
[363230267,1748632243738,-1400.0,0.00027347,2]
[363230269,1748632243748,-600.0,0.00027348,2]
[363230271,1748632243757,-500.0,0.00027352,2]
[363230273,1748632243766,-24756.6496363,0.00027355,3]
[363230275,1748632243775,-570.80039319,0.00027358,2]
[363230277,1748632243784,-500.0,0.00027362,2]
[363230279,1748632243793,-5872.27516236,0.00027364,2]
[363230282,1748632243809,-424.175,0.00027364,2]
[363230287,1748632243840,-603.54983764,0.00027364,2]
[363230289,1748632243850,-500.0,0.00027369,2]
[363230291,1748632243859,-500.0,0.00027376,2]
[363230293,1748632243869,-500.0,0.00027376,2]
[363230295,1748632243878,-1400.0,0.00027377,2]
[363230297,1748632243887,-28804.6683756,0.00027377,3]
[363230299,1748632243896,-500.0,0.00027382,2]
[363230301,1748632243905,-500.0,0.00027383,2]
[363230303,1748632243914,-500.0,0.00027386,2]
[363230305,1748632243923,-150.0,0.00027386,7]
[363230307,1748632243932,-24756.6496363,0.00027387,3]
[363230309,1748632243941,-6900.0,0.00027393,2]
[363230311,1748632243950,-3900.0,0.00027394,2]
[363230313,1748632243959,-150.0,0.00027397,2]
[363230315,1748632243969,-155.0,0.00027397,5]
[363230316,1748632243978,-5177.3,0.00027397,15]
[363230318,1748632243987,-150.0,0.00027397,2]
[363230320,1748632243997,-198.0,0.00027397,80]
[363230323,1748632244006,-300.0,0.00027397,2]
[363230325,1748632244016,-5120.14,0.00027397,2]
[363230327,1748632244025,-173.0,0.00027397,3]
[363230328,1748632244035,-189.44325697,0.00027397,3]
[363230330,1748632244044,-159.5312049,0.00027397,5]
[363230332,1748632244053,-828.70487709,0.00027398,2]
[363230335,1748632244063,-286.0,0.000274,2]
[363230337,1748632244073,-1200.0,0.000274,2]
[363230339,1748632244082,-556.0,0.000274,2]
[363230340,1748632244092,-1000.0,0.000274,2]
[363230343,1748632244101,-600.0,0.00027401,2]
[363230344,1748632244111,-1400.0,0.00027409,2]
[363230347,1748632244120,-150.0,0.00027424,2]
[363230348,1748632244129,-500.0,0.00027437,2]
[363230350,1748632244139,-517.25579772,0.00027447,2]
[363230352,1748632244148,-251.93985122,0.00027452,2]
[363230354,1748632244157,-11078.90644131,0.00027452,3]
[363230368,1748632244277,-317.35758822,0.00027452,3]
[363230380,1748632244388,-302.0,0.00027452,3]
[363230457,1748632245147,-1936.59059847,0.00027452,3]
[363230477,1748632245322,-2844.0219719,0.00027452,3]
[363230556,1748632247363,-2979.53790663,0.00027452,3]
[363230581,1748632666826,269.33,0.00013699,2]
[363230609,1748633111503,256.58718561,0.000154,2]
[363230619,1748633312301,700.0,0.000193,7]
[363230620,1748633314455,1400.0,0.000194,7]
[363230624,1748633326023,175.06,0.00019178,2]
[363230631,1748633359672,-2100.0,0.000195,7]
[363230632,1748633359694,-408.13840062,0.000195,2]
[363230633,1748633359714,-2491.86159938,0.00019586,2]
[363230634,1748633366113,-1861.89840062,0.00019586,2]
[363230635,1748633366136,-774.93281738,0.000196,7]
[363230643,1748633382795,250.0,0.00015,2]
[363230644,1748633384505,300.0,0.00017,2]
[363230645,1748633384979,350.0,0.00019,2]
[363230646,1748633389045,1000.0,0.00019126,2]
[363230649,1748633419443,23900.0,0.00018965,2]
[363230652,1748633422088,5206.72,0.00018965,2]
[363230665,1748633431698,-372.99804426,0.000196,7]
[363230666,1748633431770,-1652.06913836,0.000196,7]
[363230667,1748633431780,-200.0,0.0001965,2]
[363230668,1748633431789,-1200.0,0.00019699,2]
[363230669,1748633431799,-300.0,0.00019699,2]
[363230670,1748633431808,-299.0,0.00019699,2]
[363230671,1748633431817,-408.1384006,0.000197,2]
[363230672,1748633431827,-600.0,0.000197,7]
[363230673,1748633431837,-400.0,0.000197,7]
[363230674,1748633431846,-3600.0,0.000197,7]
[363230675,1748633431856,-200.0,0.0001971,2]
[363230676,1748633431869,-250.0,0.0001975,2]
[363230677,1748633431879,-540.06168161,0.000198,7]
[363230679,1748633431890,-659.93831839,0.000198,7]
[363230680,1748633431899,-800.0,0.000198,7]
[363230681,1748633431910,-700.0,0.000198,7]
[363230682,1748633431919,-408.1384006,0.00019899,2]
[363230683,1748633431929,-286.0,0.00019899,2]
[363230684,1748633431938,-1800.0,0.000199,7]
[363230685,1748633431948,-325.39422773,0.000199,7]
[363230686,1748633431960,-874.60577227,0.000199,7]
[363230687,1748633431971,-700.0,0.000199,7]
[363230688,1748633431980,-238.53520083,0.000199,2]
[363230689,1748633431989,-170.07706665,0.000199,2]
[363230690,1748633431999,-1384.43592587,0.000199,2]
[363230691,1748633432010,-1755.3,0.000199,2]
[363230692,1748633435728,-9111.86673006,0.000199,2]
[363230693,1748633435737,-938.00128699,0.000199,2]
[363230694,1748633435747,-151.0,0.00019906,2]
[363230695,1748633435758,-12251.6026559,0.0001991,2]
[363230696,1748633435769,-12251.6026559,0.00019919,2]
[363230697,1748633435780,-12251.6026559,0.00019929,2]
[363230698,1748633435789,-12251.6026559,0.00019939,2]
[363230699,1748633435799,-12251.6026559,0.00019948,2]
[363230700,1748633435808,-5859.86902515,0.00019958,2]
[363230910,1748633438062,-419.999999,0.00019958,2]
[363230913,1748633438085,-3424.90095736,0.00019958,2]
[363230917,1748633438116,-2546.83267439,0.00019958,2]
[363230919,1748633438125,-12251.6026559,0.00019968,2]
[363230921,1748633438134,-500.0,0.00019973,2]
[363230923,1748633438144,-500.0,0.00019973,2]
[363230925,1748633438153,-500.0,0.00019973,2]
[363230927,1748633438160,-370.50834234,0.00019973,2]
[363230929,1748633438170,-500.0,0.00019973,2]
[363230931,1748633438179,-500.0,0.00019973,2]
[363230933,1748633438188,-500.0,0.00019973,2]
[363230935,1748633438198,-3250.71,0.00019973,14]
[363230937,1748633438207,-12251.6026559,0.00019977,2]
[363230939,1748633438215,-636.93452924,0.00019985,2]
[363230941,1748633438224,-243.97103058,0.00019987,2]
[363230943,1748633438233,-1103.4526707,0.00019987,2]
[363230945,1748633438242,-584.84980646,0.00019987,2]
[363230947,1748633438251,-12251.6026559,0.00019987,2]
[363230948,1748633438261,-268.61,0.0001999,3]
[363230949,1748633438270,-151.75,0.0001999,2]
[363230951,1748633438279,-151.75,0.0001999,2]
[363230953,1748633438289,-151.75,0.0001999,2]
[363230955,1748633438298,-151.75,0.0001999,2]
[363230957,1748633438307,-151.75,0.0001999,2]
[363230959,1748633438316,-151.75,0.0001999,2]
[363230961,1748633438326,-151.75,0.0001999,2]
[363230963,1748633438335,-200.0,0.00019994,2]
[363230965,1748633438345,-1000.0,0.00019998,2]
[363230967,1748633438354,-500.0,0.00019999,2]
[363230969,1748633438364,-500.0,0.00019999,2]
[363230971,1748633438373,-193.71368669,0.00019999,2]
[363230973,1748633438382,-500.0,0.00019999,2]
[363230975,1748633438392,-500.0,0.00019999,2]
[363230977,1748633438401,-500.0,0.00019999,2]
[363230979,1748633438411,-500.0,0.00019999,2]
[363230981,1748633438421,-500.0,0.00019999,2]
[363230983,1748633438430,-500.0,0.00019999,2]
[363230985,1748633438439,-500.0,0.00019999,2]
[363230987,1748633438449,-500.0,0.00019999,2]
[363230989,1748633438458,-500.0,0.00019999,2]
[363230991,1748633438467,-500.0,0.00019999,2]
[363230993,1748633438476,-500.0,0.00019999,2]
[363230995,1748633438487,-500.0,0.00019999,2]
[363230997,1748633438496,-500.0,0.00019999,2]
[363230999,1748633438506,-500.0,0.00019999,2]
[363231001,1748633438515,-90.07451738,0.00019999,2]
[363231134,1748633439784,-409.92548262,0.00019999,2]
[363231136,1748633439794,-500.0,0.00019999,2]
[363231138,1748633439804,-500.0,0.00019999,2]
[363231141,1748633439813,-390.15032399,0.00019999,2]
[363231143,1748633439823,-500.0,0.00019999,2]
[363231145,1748633439833,-500.0,0.00019999,2]
[363231147,1748633439842,-500.0,0.00019999,2]
[363231149,1748633439852,-365.02077265,0.00019999,2]
[363231151,1748633439862,-500.0,0.00019999,2]
[363231153,1748633439872,-500.0,0.00019999,2]
[363231155,1748633439882,-500.0,0.00019999,2]
[363231157,1748633439893,-500.0,0.00019999,2]
[363231158,1748633439902,-500.0,0.00019999,2]
[363231161,1748633439913,-500.0,0.00019999,2]
[363231163,1748633439924,-500.0,0.00019999,2]
[363231164,1748633439934,-246.57324225,0.00019999,2]
[363231166,1748633439945,-337.69347252,0.00019999,2]
[363231168,1748633439956,-500.0,0.00019999,2]
[363231170,1748633439966,-500.0,0.00019999,2]
[363231172,1748633439976,-500.0,0.00019999,2]
[363231174,1748633439986,-500.0,0.00019999,2]
[363231176,1748633439996,-500.0,0.00019999,2]
[363231178,1748633440007,-500.0,0.00019999,2]
[363231180,1748633440017,-500.0,0.00019999,2]
[363231182,1748633440027,-500.0,0.00019999,2]
[363231184,1748633440038,-500.0,0.00019999,2]
[363231186,1748633440047,-500.0,0.00019999,2]
[363231188,1748633440057,-500.0,0.00019999,2]
[363231190,1748633440067,-500.0,0.00019999,2]
[363231192,1748633440077,-500.0,0.00019999,2]
[363231194,1748633440087,-500.0,0.00019999,2]
[363231196,1748633440097,-500.0,0.00019999,2]
[363231198,1748633440108,-500.0,0.00019999,2]
[363231200,1748633440118,-500.0,0.00019999,2]
[363231202,1748633440128,-500.0,0.00019999,2]
[363231205,1748633440141,-500.0,0.00019999,2]
[363231207,1748633440151,-499.64977375,0.00019999,2]
[363231209,1748633440161,-500.0,0.00019999,2]
[363231211,1748633440172,-500.0,0.00019999,2]
[363231213,1748633440181,-500.0,0.00019999,2]
[363231215,1748633440192,-352.17575992,0.00019999,2]
[363231217,1748633440202,-500.0,0.00019999,2]
[363231219,1748633440211,-500.0,0.00019999,2]
[363231221,1748633440221,-500.0,0.00019999,2]
[363231223,1748633440230,-500.0,0.00019999,2]
[363231225,1748633440240,-500.0,0.00019999,2]
[363231227,1748633440249,-500.0,0.00019999,2]
[363231229,1748633440258,-500.0,0.00019999,2]
[363231231,1748633440267,-500.0,0.00019999,2]
[363231233,1748633440276,-500.0,0.00019999,2]
[363231235,1748633440286,-500.0,0.00019999,2]
[363231237,1748633440295,-500.0,0.00019999,2]
[363231239,1748633440305,-500.0,0.00019999,2]
[363231241,1748633440314,-500.0,0.00019999,2]
[363231243,1748633440323,-500.0,0.00019999,2]
[363231245,1748633440332,-500.0,0.00019999,2]
[363231247,1748633440341,-500.0,0.00019999,2]
[363231249,1748633440351,-217.26147401,0.00019999,2]
[363231251,1748633440360,-500.0,0.00019999,2]
[363231253,1748633440369,-500.0,0.00019999,2]
[363231255,1748633440380,-500.0,0.00019999,2]
[363231257,1748633440392,-500.0,0.00019999,2]
[363231260,1748633440401,-500.0,0.00019999,2]
[363231262,1748633440412,-500.0,0.00019999,2]
[363231264,1748633440421,-500.0,0.00019999,2]
[363231266,1748633440430,-500.0,0.00019999,2]
[363231268,1748633440439,-500.0,0.00019999,2]
[363231270,1748633440449,-500.0,0.00019999,2]
[363231272,1748633440459,-500.0,0.00019999,2]
[363231274,1748633440468,-500.0,0.00019999,2]
[363231276,1748633440477,-500.0,0.00019999,2]
[363231278,1748633440487,-500.0,0.00019999,2]
[363231280,1748633440497,-500.0,0.00019999,2]
[363231282,1748633440507,-500.0,0.00019999,2]
[363231284,1748633440516,-500.0,0.00019999,2]
[363231286,1748633440526,-500.0,0.00019999,2]
[363231288,1748633440536,-500.0,0.00019999,2]
[363231290,1748633440546,-318.79371916,0.00019999,2]
[363231292,1748633440556,-500.0,0.00019999,2]
[363231294,1748633440565,-500.0,0.00019999,2]
[363231296,1748633440574,-500.0,0.00019999,2]
[363231298,1748633440583,-500.0,0.00019999,2]
[363231300,1748633440592,-500.0,0.00019999,2]
[363231302,1748633440602,-500.0,0.00019999,2]
[363231304,1748633440612,-500.0,0.00019999,2]
[363231306,1748633440621,-500.0,0.00019999,2]
[363231308,1748633440631,-500.0,0.00019999,2]
[363231310,1748633440642,-500.0,0.00019999,2]
[363231312,1748633440651,-500.0,0.00019999,2]
[363231314,1748633440661,-500.0,0.00019999,2]
[363231316,1748633440671,-500.0,0.00019999,2]
[363231318,1748633440681,-500.0,0.00019999,2]
[363231320,1748633440690,-500.0,0.00019999,2]
[363231322,1748633440700,-500.0,0.00019999,2]
[363231339,1748633440954,-500.0,0.00019999,2]
[363231340,1748633440975,-500.0,0.00019999,2]
[363231341,1748633440985,-500.0,0.00019999,2]
[363231343,1748633440995,-500.0,0.00019999,2]
[363231345,1748633441005,-500.0,0.00019999,2]
[363231347,1748633441015,-500.0,0.00019999,2]
[363231349,1748633441024,-500.0,0.00019999,2]
[363231351,1748633441037,-500.0,0.00019999,2]
[363231353,1748633441047,-150.00228271,0.00019999,2]
[363231355,1748633441057,-500.0,0.00019999,2]
[363231357,1748633441066,-500.0,0.00019999,2]
[363231359,1748633441076,-500.0,0.00019999,2]
[363231361,1748633441086,-500.0,0.00019999,2]
[363231363,1748633441095,-500.0,0.00019999,2]
[363231365,1748633441105,-500.0,0.00019999,2]
[363231367,1748633441115,-500.0,0.00019999,2]
[363231369,1748633441126,-500.0,0.00019999,2]
[363231371,1748633441135,-500.0,0.00019999,2]
[363231373,1748633441144,-312.25975117,0.00019999,2]
[363231375,1748633441154,-500.0,0.00019999,2]
[363231377,1748633441163,-500.0,0.00019999,2]
[363231380,1748633441174,-500.0,0.00019999,2]
[363231382,1748633441184,-500.0,0.00019999,2]
[363231384,1748633441194,-500.0,0.00019999,2]
[363231386,1748633441203,-500.0,0.00019999,2]
[363231388,1748633441213,-500.0,0.00019999,2]
[363231390,1748633441223,-500.0,0.00019999,2]
[363231392,1748633441232,-500.0,0.00019999,2]
[363231394,1748633441242,-500.0,0.00019999,2]
[363231396,1748633441251,-500.0,0.00019999,2]
[363231398,1748633441259,-300.0,0.00019999,2]
[363231400,1748633441269,-500.0,0.00019999,2]
[363231402,1748633441277,-500.0,0.00019999,2]
[363231404,1748633441286,-500.0,0.00019999,2]
[363231406,1748633441296,-500.0,0.00019999,2]
[363231408,1748633441306,-1552.94078067,0.00019999,2]
[363231410,1748633441316,-410.95283435,0.00019999,2]
[363231412,1748633441326,-445.88146231,0.00019999,2]
[363231414,1748633441336,-288.18832226,0.00019999,2]
[363231416,1748633441346,-571.37334967,0.00019999,2]
[363231418,1748633441355,-500.0,0.00019999,2]
[363231420,1748633441364,-201.25014101,0.00019999,2]
[363231422,1748633441374,-446.27511681,0.00019999,2]
[363231424,1748633441383,-199.34424796,0.0002,2]
[363231426,1748633441393,-740398.75916176,0.0002,2]
[363231428,1748633441403,-1422329.81146408,0.0002,2]
[363231430,1748633441413,-2260.13008014,0.0002,2]
[363231432,1748633441423,-302.21648308,0.0002,2]
[363231434,1748633441432,-3168524.00712783,0.0002,2]
[363231463,1748633441699,-2582.37979994,0.0002,2]
[363232011,1748633506650,1480.5,0.00017801,2]
[363232012,1748633549229,1500.0,0.00019178,2]
[363232013,1748633551492,8308.55,0.00019177,2]
[363232014,1748633627668,17981.82,0.00019075,2]
[363232015,1748633628697,150.0,0.00019075,2]
[363232016,1748633714724,291.46,0.00013699,2]
[363232018,1748633740596,19629.55,0.00019032,2]
[363232019,1748633772227,164.81,0.00019032,2]
[363232020,1748633792505,250.0,0.00019032,2]
[363232021,1748633848294,3568.38,0.00019017,2]
[363232022,1748633889774,1269.99,0.00019024,2]
[363232024,1748633921166,1397.7,0.00019024,2]
[363232025,1748633923157,1012.065,0.00025,60]
[363232026,1748633944859,3287.82,0.00019002,2]
[363232027,1748633947544,200.0,0.00019002,2]
[363232028,1748633951609,1219.8,0.00019002,2]
[363232029,1748633983956,200.0,0.00018999,2]
[363232030,1748633994007,3151.36,0.00018973,2]
[363232031,1748634120150,837.76,0.00018838,2]
[363232032,1748634158806,1236.74,0.00018801,2]
[363232033,1748634161752,208.01,0.000188,2]
[363232034,1748634183735,885.4,0.000188,2]
[363232035,1748634183942,885.4,0.00018805,2]
[363232036,1748634184169,885.4,0.0001881,2]
[363232037,1748634184587,885.4,0.00018814,2]
[363232038,1748634184805,885.4,0.00018819,2]
[363232039,1748634185069,885.4,0.00018824,2]
[363232040,1748634185292,885.4,0.00018829,2]
[363232041,1748634185545,174.68439979,0.00018834,2]
[363232042,1748634185569,710.71560021,0.00018834,2]
[363232043,1748634185765,885.4,0.00018839,2]
[363232044,1748634185962,885.4,0.00018844,2]
[363232045,1748634186172,885.4,0.00018849,2]
[363232046,1748634186581,885.4,0.00018854,2]
[363232047,1748634186854,885.4,0.00018859,2]
[363232048,1748634187049,885.4,0.00018864,2]
[363232049,1748634187326,885.4,0.00018869,2]
[363232050,1748634187550,885.4,0.00018874,2]
[363232051,1748634187846,885.4,0.00018879,2]
[363232052,1748634188206,885.4,0.00018884,2]
[363232053,1748634188289,885.4,0.00018889,2]
[363232054,1748634188448,885.4,0.00018894,2]
[363232055,1748634267754,2751.0,0.000188,2]
[363232056,1748634320367,4000.0,0.00018738,2]
[363232057,1748634368938,204.0692003,0.000194,2]
[363232058,1748634388902,972.89,0.00018945,2]
[363232085,1748634462746,23900.0,0.00018714,2]
[363232086,1748634507611,2738.91,0.00018689,2]
[363232087,1748634519013,1161.34,0.00018689,2]
[363232092,1748634534825,1406.47,0.00016771,2]
[363232093,1748634535028,1406.47,0.00019035,2]
[363232095,1748634571144,-1204.63369511,0.00019499,2]
[363232096,1748634578198,5931.63,0.00018693,2]
[363232097,1748634627626,166.13,0.00019243,2]
[363232102,1748634632143,-1191.88940522,0.00019499,2]
[363232103,1748634632153,-175.82550316,0.00019499,2]
[363232104,1748634632162,-200.0,0.00019499,2]
[363232105,1748634632172,-250.0,0.00019499,2]
[363232106,1748634632182,-1600.0,0.000195,7]
[363232107,1748634632194,-2396.52310032,0.000195,2]
[363232108,1748634632203,-200.0,0.00019501,2]
[363232109,1748634632212,-204.0692003,0.00019508,2]
[363232110,1748634632222,-151.0,0.00019509,2]
[363232111,1748634632231,-1200.0,0.00019515,2]
[363232112,1748634632241,-300.0,0.00019516,2]
[363232113,1748634632251,-300.0,0.00019598,2]
[363232114,1748634632260,-286.0,0.00019599,2]
[363232116,1748634632272,-20110.0,0.000196,2]
[363232118,1748634632282,-3300.0,0.000196,7]
[363232120,1748634632291,-4195.22588359,0.00019608,2]
[363232122,1748634632315,-2792.11727493,0.00019608,2]
[363232123,1748634632325,-183.674,0.00019618,2]
[363232124,1748634632334,-4610.883,0.00019618,2]
[363232125,1748634632344,-8467.47529469,0.00019618,2]
[363232126,1748634632355,-151.0,0.00019625,2]
[363232127,1748634632365,-786.82,0.00019627,2]
[363232128,1748634632374,-786.82,0.00019627,2]
[363232129,1748634632383,-786.82,0.00019627,2]
[363232130,1748634632392,-1684.5527651,0.00019636,2]
[363232131,1748634632401,-1000.0,0.00019636,2]
[363232132,1748634632411,-1000.0,0.00019636,2]
[363232133,1748634632420,-1000.0,0.00019636,2]
[363232134,1748634632429,-1000.0,0.00019636,2]
[363232135,1748634632438,-1000.0,0.00019636,2]
[363232136,1748634632448,-1000.0,0.00019636,2]
[363232137,1748634632457,-1000.0,0.00019636,2]
[363232138,1748634632466,-1000.0,0.00019636,2]
[363232139,1748634632475,-1000.0,0.00019636,2]
[363232140,1748634632485,-1000.0,0.00019636,2]
[363232141,1748634632494,-1000.0,0.00019636,2]
[363232142,1748634632502,-1000.0,0.00019636,2]
[363232143,1748634632511,-1000.0,0.00019636,2]
[363232144,1748634632521,-1000.0,0.00019636,2]
[363232145,1748634632530,-1000.0,0.00019636,2]
[363232146,1748634632539,-876.0,0.00019636,2]
[363232147,1748634632549,-500.0,0.00019636,2]
[363232148,1748634632558,-500.0,0.00019636,2]
[363232149,1748634632567,-500.0,0.00019636,2]
[363232150,1748634632577,-500.0,0.00019636,2]
[363232151,1748634632586,-500.0,0.00019636,2]
[363232152,1748634632595,-500.0,0.00019636,2]
[363232153,1748634632605,-500.0,0.00019636,2]
[363232154,1748634632615,-500.0,0.00019636,2]
[363232155,1748634632624,-500.0,0.00019636,2]
[363232156,1748634632633,-222.24758565,0.00019636,2]
[363232157,1748634632644,-499.64977375,0.00019636,2]
[363232158,1748634632653,-500.0,0.00019636,2]
[363232159,1748634632662,-500.0,0.00019636,2]
[363232160,1748634632673,-500.0,0.00019636,2]
[363232161,1748634632683,-500.0,0.00019636,2]
[363232162,1748634632692,-500.0,0.00019636,2]
[363232163,1748634632702,-500.0,0.00019636,2]
[363232164,1748634632711,-249.65732422,0.00019636,2]
[363232165,1748634632720,-500.0,0.00019636,2]
[363232166,1748634632730,-500.0,0.00019636,2]
[363232167,1748634632739,-259.08325834,0.00019636,2]
[363232168,1748634632749,-500.0,0.00019636,2]
[363232169,1748634632759,-500.0,0.00019636,2]
[363232170,1748634632768,-500.0,0.00019636,2]
[363232171,1748634632778,-500.0,0.00019636,2]
[363232172,1748634632787,-500.0,0.00019636,2]
[363232173,1748634632796,-500.0,0.00019636,2]
[363232174,1748634632806,-174.49579013,0.00019636,2]
[363232175,1748634632815,-500.0,0.00019636,2]
[363232176,1748634632825,-500.0,0.00019636,2]
[363232177,1748634632834,-500.0,0.00019636,2]
[363232178,1748634632844,-500.0,0.00019636,2]
[363232179,1748634632854,-500.0,0.00019636,2]
[363232180,1748634632864,-500.0,0.00019636,2]
[363232181,1748634632873,-500.0,0.00019636,2]
[363232182,1748634632883,-500.0,0.00019636,2]
[363232183,1748634632893,-500.0,0.00019636,2]
[363232184,1748634632903,-500.0,0.00019636,2]
[363232185,1748634632912,-500.0,0.00019636,2]
[363232186,1748634632921,-500.0,0.00019636,2]
[363232187,1748634632931,-500.0,0.00019636,2]
[363232188,1748634632941,-500.0,0.00019636,2]